[Event "NJSK 2024 C"]
[Site "Groningen, Netherlands"]
[Date "2024.04.29"]
[Round "3.10"]
[White "Ngangbam, Chingthang"]
[Black "Tetova, Amir"]
[Result "0-1"]
[TimeControl "90min/40moves + 30min + 30sec/move"]
[WhiteElo "1713"]
[BlackElo "1767"]

1. e4 {[%clk 01:30:49]} {[%emt 00:00:10]} e6 {[%clk 01:30:41]} {[%emt
00:00:20]} 2. d4 {[%clk 01:30:52]} {[%emt 00:00:27]} d5 {[%clk 01:31:00]}
{[%emt 00:00:11]} 3. Nc3 {[%clk 01:30:48]} {[%emt 00:00:33]} dxe4 {[%clk
01:31:11]} {[%emt 00:00:20]} 4. Nxe4 {[%clk 01:31:04]} {[%emt 00:00:13]} Nf6
{[%clk 01:31:34]} {[%emt 00:00:08]} 5. Bg5 {[%clk 01:30:57]} {[%emt 00:00:35]}
Be7 {[%clk 01:31:40]} {[%emt 00:00:26]} 6. Bxf6 {[%clk 01:30:19]} {[%emt
00:01:06]} Bxf6 {[%clk 01:32:06]} {[%emt 00:00:06]} 7. Nf3 {[%clk 01:30:08]}
{[%emt 00:00:40]} Nc6 {[%clk 01:32:21]} {[%emt 00:00:16]} 8. c3 {[%clk
01:29:39]} {[%emt 00:00:58]} O-O {[%clk 01:31:04]} {[%emt 00:01:47]} 9. Bd3
{[%clk 01:29:19]} {[%emt 00:00:50]} Re8 {[%clk 01:29:53]} {[%emt 00:01:42]} 10.
Qc2 {[%clk 01:22:21]} {[%emt 00:07:27]} h6 {[%clk 01:27:38]} {[%emt 00:02:45]}
11. h4 {[%clk 01:15:16]} {[%emt 00:07:36]} e5 {[%clk 01:19:24]} {[%emt
00:08:45]} 12. Nxf6+ {[%clk 00:58:18]} {[%emt 00:17:27]} Qxf6 {[%clk 01:19:30]}
{[%emt 00:00:24]} 13. d5 {[%clk 00:55:01]} {[%emt 00:03:47]} Ne7 {[%clk
01:18:21]} {[%emt 00:01:39]} 14. O-O-O {[%clk 00:54:54]} {[%emt 00:00:37]} Bf5
{[%clk 01:16:32]} {[%emt 00:02:19]} 15. Rhe1 {[%clk 00:47:20]} {[%emt
00:08:03]} Bxd3 {[%clk 01:12:42]} {[%emt 00:04:21]} 16. Qxd3 {[%clk 00:47:02]}
{[%emt 00:00:47]} Ng6 {[%clk 01:12:30]} {[%emt 00:00:43]} 17. g3 {[%clk
00:45:19]} {[%emt 00:02:14]} Re7 {[%clk 01:09:45]} {[%emt 00:03:14]} 18. h5
{[%clk 00:35:23]} {[%emt 00:10:26]} Nf8 {[%clk 01:09:46]} {[%emt 00:00:29]} 19.
Qe3 {[%clk 00:35:24]} {[%emt 00:00:29]} Nd7 {[%clk 01:06:39]} {[%emt 00:03:38]}
20. Nd2 {[%clk 00:34:51]} {[%emt 00:01:02]} Qa6 {[%clk 01:05:05]} {[%emt
00:02:04]} 21. Kb1 {[%clk 00:34:43]} {[%emt 00:00:37]} Nf6 {[%clk 01:02:09]}
{[%emt 00:03:26]} 22. Qf3 {[%clk 00:32:31]} {[%emt 00:02:43]} Rd8 {[%clk
01:01:03]} {[%emt 00:01:37]} 23. Nb3 {[%clk 00:25:55]} {[%emt 00:07:05]} Qc4
{[%clk 00:53:19]} {[%emt 00:08:13]} 24. Qf5 {[%clk 00:18:55]} {[%emt 00:07:30]}
Nxd5 {[%clk 00:46:07]} {[%emt 00:07:43]} 25. Rd2 {[%clk 00:16:56]} {[%emt
00:02:29]} c6 {[%clk 00:43:07]} {[%emt 00:03:30]} 26. Rxe5 {[%clk 00:15:48]}
{[%emt 00:01:38]} Rxe5 {[%clk 00:40:38]} {[%emt 00:02:59]} 27. Qxe5 {[%clk
00:16:06]} {[%emt 00:00:11]} Kf8 {[%clk 00:35:13]} {[%emt 00:05:55]} 28. Kc1
{[%clk 00:11:44]} {[%emt 00:04:52]} Re8 {[%clk 00:34:36]} {[%emt 00:01:08]} 29.
Qd4 {[%clk 00:10:05]} {[%emt 00:02:09]} Re1+ {[%clk 00:27:32]} {[%emt
00:07:34]} 30. Kc2 {[%clk 00:08:56]} {[%emt 00:01:40]} Nb4# {[%clk 00:27:53]}
{[%emt 00:00:09]} 0-1

[Event "NJSK 2024 C"]
[Site "Groningen, Netherlands"]
[Date "2024.04.29"]
[Round "3.11"]
[White "Zecha, Oscar"]
[Black "Guillaumond, Matthieu"]
[Result "1-0"]
[TimeControl "90min/40moves + 30min + 30sec/move"]
[WhiteElo "1998"]
[BlackElo "1945"]

1. e4 {[%clk 01:30:57]} {[%emt 00:00:02]} c5 {[%clk 01:30:38]} {[%emt
00:00:23]} 2. Nf3 {[%clk 01:31:24]} {[%emt 00:00:03]} Nc6 {[%clk 01:31:01]}
{[%emt 00:00:07]} 3. d4 {[%clk 01:31:50]} {[%emt 00:00:04]} cxd4 {[%clk
01:31:27]} {[%emt 00:00:04]} 4. Nxd4 {[%clk 01:32:17]} {[%emt 00:00:03]} g6
{[%clk 01:31:52]} {[%emt 00:00:06]} 5. c4 {[%clk 01:32:43]} {[%emt 00:00:04]}
Bg7 {[%clk 01:32:17]} {[%emt 00:00:04]} 6. Be3 {[%clk 01:33:09]} {[%emt
00:00:04]} Qb6 {[%clk 01:32:44]} {[%emt 00:00:04]} 7. Nb5 {[%clk 01:24:56]}
{[%emt 00:08:42]} Qa5+ {[%clk 01:32:56]} {[%emt 00:00:17]} 8. N1c3 {[%clk
01:14:33]} {[%emt 00:10:53]} Nf6 {[%clk 01:33:08]} {[%emt 00:00:18]} 9. f3
{[%clk 01:13:27]} {[%emt 00:01:36]} O-O {[%clk 01:32:51]} {[%emt 00:00:47]} 10.
a3 {[%clk 01:08:19]} {[%emt 00:05:39]} a6 {[%clk 01:23:40]} {[%emt 00:09:41]}
11. b4 {[%clk 01:06:54]} {[%emt 00:01:55]} Qd8 {[%clk 01:23:57]} {[%emt
00:00:13]} 12. Nd4 {[%clk 01:07:13]} {[%emt 00:00:11]} d6 {[%clk 01:23:58]}
{[%emt 00:00:29]} 13. Be2 {[%clk 01:02:47]} {[%emt 00:04:55]} Nh5 {[%clk
01:19:45]} {[%emt 00:04:43]} 14. Rc1 {[%clk 00:41:48]} {[%emt 00:21:29]} f5
{[%clk 01:15:16]} {[%emt 00:04:58]} 15. exf5 {[%clk 00:41:38]} {[%emt
00:00:43]} gxf5 {[%clk 01:14:20]} {[%emt 00:01:26]} 16. Nxc6 {[%clk 00:38:42]}
{[%emt 00:03:25]} bxc6 {[%clk 01:12:47]} {[%emt 00:02:02]} 17. f4 {[%clk
00:38:19]} {[%emt 00:00:54]} Nf6 {[%clk 01:11:36]} {[%emt 00:01:40]} 18. Bf3
{[%clk 00:33:53]} {[%emt 00:04:57]} Qc7 {[%clk 01:08:17]} {[%emt 00:03:49]} 19.
b5 {[%clk 00:31:21]} {[%emt 00:03:02]} axb5 {[%clk 01:04:44]} {[%emt 00:04:03]}
20. cxb5 {[%clk 00:29:14]} {[%emt 00:02:38]} Rxa3 {[%clk 01:04:01]} {[%emt
00:01:13]} 21. Bxc6 {[%clk 00:28:35]} {[%emt 00:01:08]} Ng4 {[%clk 00:45:28]}
{[%emt 00:19:03]} 22. Bd4 {[%clk 00:20:28]} {[%emt 00:08:37]} Ne3 {[%clk
00:36:25]} {[%emt 00:09:32]} 23. Qd3 {[%clk 00:18:44]} {[%emt 00:02:15]} Ng4
{[%clk 00:35:19]} {[%emt 00:01:36]} 24. Bxg7 {[%clk 00:18:25]} {[%emt
00:00:49]} Kxg7 {[%clk 00:35:30]} {[%emt 00:00:19]} 25. Qe2 {[%clk 00:18:12]}
{[%emt 00:00:43]} e5 {[%clk 00:32:02]} {[%emt 00:03:55]} 26. h3 {[%clk
00:17:20]} {[%emt 00:01:25]} Nf6 {[%clk 00:31:39]} {[%emt 00:00:52]} 27. fxe5
{[%clk 00:17:29]} {[%emt 00:00:22]} dxe5 {[%clk 00:31:59]} {[%emt 00:00:10]} 28.
O-O {[%clk 00:17:26]} {[%emt 00:00:32]} Be6 {[%clk 00:32:00]} {[%emt 00:00:30]}
29. Rfe1 {[%clk 00:13:11]} {[%emt 00:04:45]} e4 {[%clk 00:30:48]} {[%emt
00:01:42]} 30. Qf2 {[%clk 00:10:25]} {[%emt 00:03:16]} Qe5 {[%emt 00:01:59]} 31.
Ne2 {[%clk 00:10:21]} Kh8 {[%clk 00:25:47]} {[%emt 00:04:34]} 32. Qd4 {[%clk
00:10:20]} {[%emt 00:00:31]} Qb8 {[%clk 00:25:16]} {[%emt 00:01:02]} 33. Ra1
{[%clk 00:08:08]} {[%emt 00:02:42]} Rd3 {[%clk 00:22:58]} {[%emt 00:02:48]} 34.
Qc5 {[%clk 00:08:20]} {[%emt 00:00:17]} Rc8 {[%emt 00:03:31]} 35. Qe7 {[%clk
00:06:47]} Qe5 {[%clk 00:21:59]} {[%emt 00:00:31]} 36. Nf4 {[%clk 00:05:54]}
{[%emt 00:01:23]} Qd4+ {[%clk 00:16:36]} {[%emt 00:05:54]} 37. Kh1 {[%clk
00:05:27]} {[%emt 00:00:54]} Rg8 {[%clk 00:14:56]} {[%emt 00:02:12]} 38. Nxd3
{[%clk 00:05:01]} {[%emt 00:00:57]} Bd5 {[%clk 00:13:39]} {[%emt 00:01:47]} 39.
Bxd5 {[%clk 00:04:56]} {[%emt 00:00:35]} Nxd5 {[%clk 00:14:01]} {[%emt
00:00:08]} 40. Qe5+ {[%clk 00:05:17]} {[%emt 00:00:08]} 1-0

[Event "NJSK 2024 C"]
[Site "Groningen, Netherlands"]
[Date "2024.04.29"]
[Round "3.12"]
[White "De Wit, Evan"]
[Black "Winter, Sven"]
[Result "1-0"]
[TimeControl "90min/40moves + 30min + 30sec/move"]
[WhiteElo "1769"]
[BlackElo "1768"]

1. d4 {[%clk 01:30:58]} {[%emt 00:00:01]} Nf6 {[%clk 01:23:59]} {[%emt
00:07:02]} 2. c4 {[%clk 01:31:22]} {[%emt 00:00:06]} e6 {[%clk 01:24:26]}
{[%emt 00:00:03]} 3. Nc3 {[%clk 01:31:45]} {[%emt 00:00:07]} Bb4 {[%clk
01:24:52]} {[%emt 00:00:04]} 4. e3 {[%clk 01:32:09]} {[%emt 00:00:05]} O-O
{[%clk 01:24:58]} {[%emt 00:00:24]} 5. Bd3 {[%clk 01:32:22]} {[%emt 00:00:17]}
d5 {[%clk 01:25:21]} {[%emt 00:00:07]} 6. a3 {[%clk 01:32:10]} {[%emt
00:00:42]} Bxc3+ {[%clk 01:25:43]} {[%emt 00:00:08]} 7. bxc3 {[%clk 01:32:36]}
{[%emt 00:00:05]} b6 {[%clk 01:24:11]} {[%emt 00:02:02]} 8. Ne2 {[%clk
01:32:55]} {[%emt 00:00:10]} dxc4 {[%clk 01:18:35]} {[%emt 00:06:06]} 9. Bxc4
{[%clk 01:33:02]} {[%emt 00:00:23]} Bb7 {[%clk 01:18:51]} {[%emt 00:00:14]} 10.
O-O {[%clk 01:33:16]} {[%emt 00:00:13]} c5 {[%clk 01:17:27]} {[%emt 00:01:57]}
11. Ng3 {[%clk 01:32:09]} {[%emt 00:01:37]} Nc6 {[%clk 01:16:30]} {[%emt
00:01:27]} 12. Qe2 {[%clk 01:31:28]} {[%emt 00:01:11]} Qe7 {[%clk 01:09:02]}
{[%emt 00:07:59]} 13. Bb2 {[%clk 01:29:51]} {[%emt 00:02:06]} e5 {[%clk
01:04:52]} {[%emt 00:04:40]} 14. d5 {[%clk 01:29:27]} {[%emt 00:00:54]} Na5
{[%clk 01:00:13]} {[%emt 00:05:09]} 15. e4 {[%clk 01:29:11]} {[%emt 00:00:46]}
g6 {[%clk 00:58:59]} {[%emt 00:01:45]} 16. Bd3 {[%clk 01:26:54]} {[%emt
00:02:46]} h5 {[%clk 00:52:51]} {[%emt 00:06:38]} 17. f4 {[%clk 01:08:00]}
{[%emt 00:19:25]} c4 {[%clk 00:50:16]} {[%emt 00:03:05]} 18. Bc2 {[%clk
01:03:04]} {[%emt 00:05:25]} h4 {[%clk 00:37:34]} {[%emt 00:13:13]} 19. Nf5
{[%clk 01:02:20]} {[%emt 00:01:13]} Qc5+ {[%clk 00:28:33]} {[%emt 00:09:30]} 20.
Kh1 {[%clk 00:57:29]} {[%emt 00:05:22]} Rfe8 {[%clk 00:27:43]} {[%emt
00:01:20]} 21. fxe5 {[%clk 00:57:21]} {[%emt 00:00:38]} Rxe5 {[%clk 00:26:29]}
{[%emt 00:01:44]} 22. Nh6+ {[%clk 00:57:30]} {[%emt 00:00:21]} Kg7 {[%clk
00:26:32]} {[%emt 00:00:27]} 23. Rxf6 {[%clk 00:57:48]} {[%emt 00:00:13]} Kxh6
{[%clk 00:25:56]} {[%emt 00:01:05]} 24. Rxf7 {[%clk 00:57:59]} {[%emt
00:00:20]} Rf8 {[%clk 00:16:37]} {[%emt 00:09:48]} 25. Bc1+ {[%clk 00:50:11]}
{[%emt 00:08:17]} g5 {[%clk 00:16:45]} {[%emt 00:00:22]} 26. Be3 {[%clk
00:49:32]} {[%emt 00:01:10]} Qd6 {[%clk 00:16:34]} {[%emt 00:00:41]} 27. Rxf8
{[%clk 00:48:52]} {[%emt 00:01:10]} Qxf8 {[%clk 00:16:34]} {[%emt 00:00:30]} 28.
Qg4 {[%clk 00:47:32]} {[%emt 00:01:50]} Bxd5 {[%clk 00:12:47]} {[%emt
00:04:18]} 29. Bd4 {[%clk 00:46:01]} {[%emt 00:02:00]} Be6 {[%clk 00:12:34]}
{[%emt 00:00:43]} 30. Qe2 {[%clk 00:45:40]} {[%emt 00:00:52]} Rb5 {[%clk
00:11:58]} {[%emt 00:01:05]} 31. Rf1 {[%clk 00:45:14]} {[%emt 00:00:56]} Bg4
{[%clk 00:11:18]} {[%emt 00:01:10]} 32. Qe1 {[%clk 00:35:45]} {[%emt 00:09:59]}
Qc8 {[%clk 00:08:23]} {[%emt 00:03:22]} 33. Rf6+ {[%clk 00:35:01]} {[%emt
00:01:17]} Kh5 {[%clk 00:07:33]} {[%emt 00:01:19]} 34. e5 {[%clk 00:33:33]}
{[%emt 00:02:00]} Qg8 {[%clk 00:06:33]} {[%emt 00:01:28]} 35. Qe4 {[%clk
00:31:15]} {[%emt 00:02:49]} Bd7 {[%clk 00:05:24]} {[%emt 00:01:38]} 36. Qg6+
{[%clk 00:28:44]} {[%emt 00:03:01]} Qxg6 {[%clk 00:05:37]} {[%emt 00:00:18]} 37.
Bxg6+ {[%clk 00:28:53]} {[%emt 00:00:20]} Kh6 {[%clk 00:05:41]} {[%emt
00:00:26]} 38. Be8+ {[%clk 00:21:25]} {[%emt 00:07:59]} Kg7 {[%clk 00:05:55]}
{[%emt 00:00:16]} 39. Bxd7 {[%clk 00:20:12]} {[%emt 00:01:43]} Rb1+ {[%clk
00:06:16]} {[%emt 00:00:09]} 40. Bg1 {[%clk 00:20:35]} {[%emt 00:00:07]} Re1
{[%clk 00:06:36]} {[%emt 00:00:10]} 41. Rf5 {[%clk 00:18:28]} {[%emt 00:02:37]}
Kg6 {[%clk 00:06:24]} {[%emt 00:00:42]} 42. e6 {[%clk 00:17:17]} {[%emt
00:01:42]} Kxf5 {[%clk 00:04:21]} {[%emt 00:02:32]} 43. e7+ {[%clk 00:17:41]}
{[%emt 00:00:06]} Kf4 {[%clk 00:04:30]} {[%emt 00:00:21]} 44. e8=Q {[%clk
00:17:52]} {[%emt 00:00:19]} Rxe8 {[%clk 00:04:46]} 45. Bxe8 {[%clk 00:18:17]}
{[%emt 00:00:18]} Nb3 {[%clk 00:04:33]} {[%emt 00:00:44]} 46. Bb5 {[%clk
00:17:50]} {[%emt 00:00:56]} Na5 {[%clk 00:04:24]} {[%emt 00:00:39]} 47. Bd4
{[%clk 00:15:31]} {[%emt 00:02:50]} g4 {[%clk 00:03:55]} {[%emt 00:00:59]} 48.
Kg1 {[%clk 00:15:24]} {[%emt 00:00:37]} Ke4 {[%clk 00:03:37]} {[%emt 00:00:48]}
49. Kf2 {[%clk 00:15:07]} {[%emt 00:00:47]} Kd3 {[%clk 00:04:00]} {[%emt
00:00:06]} 50. Ke1 {[%clk 00:15:20]} {[%emt 00:00:17]} Nb3 {[%clk 00:04:19]}
{[%emt 00:00:11]} 51. g3 {[%clk 00:15:04]} {[%emt 00:00:47]} hxg3 {[%clk
00:03:20]} {[%emt 00:01:28]} 52. hxg3 {[%clk 00:15:25]} {[%emt 00:00:10]} a5
{[%clk 00:01:22]} {[%emt 00:02:28]} 53. Bd7 {[%clk 00:14:14]} {[%emt 00:01:41]}
Nxd4 {[%clk 00:01:40]} {[%emt 00:00:12]} 54. cxd4 {[%clk 00:14:12]} {[%emt
00:00:32]} Kxd4 {[%clk 00:01:46]} {[%emt 00:00:25]} 55. Kd2 {[%clk 00:14:36]}
{[%emt 00:00:05]} c3+ {[%clk 00:01:53]} {[%emt 00:00:23]} 56. Kc2 {[%clk
00:14:56]} {[%emt 00:00:11]} Kc4 {[%clk 00:02:15]} {[%emt 00:00:07]} 57. a4
{[%clk 00:13:58]} {[%emt 00:01:28]} Kb4 {[%clk 00:02:10]} {[%emt 00:00:34]} 58.
Bb5 {[%clk 00:14:19]} {[%emt 00:00:09]} Ka3 {[%clk 00:02:26]} {[%emt 00:00:14]}
59. Kxc3 {[%clk 00:14:44]} {[%emt 00:00:06]} Ka2 {[%clk 00:02:49]} {[%emt
00:00:07]} 60. Kd4 {[%clk 00:15:01]} {[%emt 00:00:14]} Kb3 {[%clk 00:02:35]}
{[%emt 00:00:43]} 61. Ke4 {[%clk 00:15:25]} {[%emt 00:00:05]} 1-0

[Event "NJSK 2024 C"]
[Site "Groningen, Netherlands"]
[Date "2024.04.29"]
[Round "3.13"]
[White "Frederiks, Jesse"]
[Black "Stylianou, Alexandros"]
[Result "1-0"]
[TimeControl "90min/40moves + 30min + 30sec/move"]
[WhiteElo "1718"]
[BlackElo "1642"]

1. d4 {[%clk 01:30:56]} {[%emt 00:00:03]} d5 {[%clk 01:30:55]} {[%emt
00:00:06]} 2. c4 {[%clk 01:31:20]} {[%emt 00:00:06]} e6 {[%clk 01:31:16]}
{[%emt 00:00:09]} 3. Nc3 {[%clk 01:31:45]} {[%emt 00:00:05]} Nf6 {[%clk
01:31:31]} {[%emt 00:00:15]} 4. Bg5 {[%clk 01:31:41]} {[%emt 00:00:33]} Bb4
{[%clk 01:30:57]} {[%emt 00:01:06]} 5. e3 {[%clk 01:31:53]} {[%emt 00:00:17]}
O-O {[%clk 01:29:47]} {[%emt 00:01:39]} 6. Nf3 {[%clk 01:32:00]} {[%emt
00:00:23]} Nbd7 {[%clk 01:29:01]} {[%emt 00:01:17]} 7. Be2 {[%clk 01:31:17]}
{[%emt 00:01:11]} b6 {[%clk 01:28:50]} {[%emt 00:00:43]} 8. O-O {[%clk
01:31:05]} {[%emt 00:00:41]} Bb7 {[%clk 01:28:58]} {[%emt 00:00:22]} 9. Ne5
{[%clk 01:30:19]} {[%emt 00:01:16]} Qe8 {[%clk 01:28:09]} {[%emt 00:01:19]} 10.
f4 {[%clk 01:28:23]} {[%emt 00:02:26]} Nxe5 {[%clk 01:27:37]} {[%emt 00:01:02]}
11. fxe5 {[%clk 01:28:30]} {[%emt 00:00:23]} Nd7 {[%clk 01:27:44]} {[%emt
00:00:24]} 12. Nb5 {[%clk 01:26:58]} {[%emt 00:02:02]} Qc8 {[%clk 01:25:37]}
{[%emt 00:02:36]} 13. a3 {[%clk 01:27:01]} {[%emt 00:00:28]} a6 {[%clk
01:25:46]} {[%emt 00:00:22]} 14. axb4 {[%clk 01:26:33]} {[%emt 00:00:57]} axb5
{[%clk 01:25:31]} {[%emt 00:00:45]} 15. c5 {[%clk 01:25:35]} {[%emt 00:01:28]}
c6 {[%clk 01:25:44]} {[%emt 00:00:17]} 16. Qc2 {[%clk 01:25:08]} {[%emt
00:00:57]} Re8 {[%clk 01:24:46]} {[%emt 00:01:28]} 17. Bd3 {[%clk 01:24:11]}
{[%emt 00:01:27]} f5 {[%clk 01:21:02]} {[%emt 00:04:13]} 18. exf6 {[%clk
01:23:43]} {[%emt 00:00:58]} gxf6 {[%clk 01:20:39]} {[%emt 00:00:54]} 19. Rxa8
{[%clk 01:23:20]} {[%emt 00:00:53]} Bxa8 {[%clk 01:19:08]} {[%emt 00:02:02]} 20.
Bxf6 {[%clk 01:23:28]} {[%emt 00:00:21]} Nxf6 {[%clk 01:18:02]} {[%emt
00:01:36]} 21. Rxf6 {[%clk 01:23:50]} {[%emt 00:00:08]} Qd7 {[%clk 01:17:32]}
{[%emt 00:01:01]} 22. Qf2 {[%clk 01:20:06]} {[%emt 00:04:13]} Qg7 {[%clk
01:17:28]} {[%emt 00:00:35]} 23. Rf3 {[%clk 01:19:32]} {[%emt 00:01:04]} Rf8
{[%clk 01:15:33]} {[%emt 00:02:25]} 24. Rxf8+ {[%clk 01:19:41]} {[%emt
00:00:21]} Qxf8 {[%clk 01:15:38]} {[%emt 00:00:25]} 25. Bxh7+ {[%clk 01:19:50]}
{[%emt 00:00:22]} Kg7 {[%clk 01:15:44]} {[%emt 00:00:23]} 26. Qxf8+ {[%clk
01:20:14]} {[%emt 00:00:07]} Kxf8 {[%clk 01:15:38]} {[%emt 00:00:34]} 27. cxb6
{[%clk 01:20:41]} {[%emt 00:00:04]} Kg7 {[%clk 01:14:19]} {[%emt 00:01:48]} 28.
Bd3 {[%clk 01:20:57]} {[%emt 00:00:14]} Kf6 {[%clk 01:14:08]} {[%emt 00:00:42]}
29. Kf2 {[%clk 01:21:21]} {[%emt 00:00:05]} Kg7 {[%clk 01:09:59]} {[%emt
00:04:40]} 30. Kg3 {[%clk 01:21:08]} {[%emt 00:00:42]} Kf6 {[%clk 01:07:41]}
{[%emt 00:02:47]} 31. Kf4 {[%clk 01:21:27]} {[%emt 00:00:12]} Bb7 {[%clk
01:07:42]} {[%emt 00:00:29]} 32. g4 {[%clk 01:21:48]} {[%emt 00:00:09]} Bc8
{[%clk 01:07:12]} {[%emt 00:01:01]} 33. g5+ {[%clk 01:22:07]} {[%emt 00:00:10]}
Kg7 {[%clk 01:07:30]} {[%emt 00:00:13]} 34. Ke5 {[%clk 01:22:30]} {[%emt
00:00:06]} Kf7 {[%clk 01:07:19]} {[%emt 00:00:41]} 35. Kd6 {[%clk 01:22:51]}
{[%emt 00:00:09]} Bb7 {[%clk 01:00:11]} {[%emt 00:07:39]} 36. g6+ {[%clk
01:23:03]} {[%emt 00:00:17]} Kf6 {[%clk 01:00:12]} {[%emt 00:00:30]} 37. Kc7
{[%clk 01:23:27]} {[%emt 00:00:06]} Ba6 {[%clk 00:59:19]} {[%emt 00:01:22]} 38.
b7 {[%clk 01:23:48]} {[%emt 00:00:09]} Bxb7 {[%clk 00:59:23]} {[%emt 00:00:26]}
39. Kxb7 {[%clk 01:24:15]} {[%emt 00:00:04]} 1-0

[Event "NJSK 2024 C"]
[Site "Groningen, Netherlands"]
[Date "2024.04.29"]
[Round "3.14"]
[White "Van Haaften, Jelle"]
[Black "Kors, Siebe"]
[Result "1-0"]
[TimeControl "90min/40moves + 30min + 30sec/move"]
[WhiteElo "1655"]
[BlackElo "1668"]

1. c4 {[%clk 01:30:50]} {[%emt 00:00:10]} Nf6 {[%clk 01:29:02]} {[%emt
00:01:58]} 2. Nc3 {[%clk 01:30:48]} {[%emt 00:00:32]} c6 {[%clk 01:28:37]}
{[%emt 00:00:55]} 3. e4 {[%clk 01:30:38]} {[%emt 00:00:40]} e5 {[%clk
01:28:24]} {[%emt 00:00:43]} 4. g3 {[%clk 01:30:58]} {[%emt 00:00:10]} d5
{[%clk 01:26:33]} {[%emt 00:02:21]} 5. cxd5 {[%clk 01:31:11]} {[%emt 00:00:17]}
cxd5 {[%clk 01:26:44]} {[%emt 00:00:19]} 6. Bg2 {[%clk 01:31:33]} {[%emt
00:00:08]} d4 {[%clk 01:25:40]} {[%emt 00:01:34]} 7. Nce2 {[%clk 01:31:37]}
{[%emt 00:00:26]} Nc6 {[%emt 00:02:27]} 8. d3 {[%clk 01:31:27]} {[%emt
00:00:39]} Qc7 {[%clk 01:20:12]} {[%emt 00:04:01]} 9. f4 {[%clk 01:31:48]}
{[%emt 00:00:10]} Bd7 {[%clk 01:18:22]} {[%emt 00:02:20]} 10. Nf3 {[%clk
01:30:53]} {[%emt 00:01:26]} Bd6 {[%clk 01:15:41]} {[%emt 00:03:10]} 11. O-O
{[%clk 01:28:47]} {[%emt 00:02:36]} Nh5 {[%clk 01:12:25]} {[%emt 00:03:45]} 12.
fxe5 {[%clk 01:27:05]} {[%emt 00:02:13]} Bxe5 {[%emt 00:00:48]} 13. Bd2 {[%emt
00:01:13]} O-O {[%clk 01:06:20]} {[%emt 00:04:34]} 14. Rc1 {[%clk 01:21:50]}
{[%emt 00:05:46]} Qd6 {[%clk 01:04:12]} {[%emt 00:02:36]} 15. Qb3 {[%clk
01:15:58]} {[%emt 00:06:23]} Rab8 {[%clk 01:03:05]} {[%emt 00:01:36]} 16. Qd5
{[%clk 01:09:26]} {[%emt 00:07:03]} Be6 {[%clk 00:58:21]} {[%emt 00:05:14]} 17.
Rxc6 {[%clk 01:03:45]} {[%emt 00:06:11]} bxc6 {[%clk 00:55:37]} {[%emt
00:03:14]} 18. Qxe5 {[%clk 01:03:46]} {[%emt 00:00:29]} Qxe5 {[%clk 00:55:40]}
{[%emt 00:00:28]} 19. Nxe5 {[%clk 01:04:00]} {[%emt 00:00:15]} Rxb2 {[%clk
00:55:37]} {[%emt 00:00:33]} 20. Rd1 {[%clk 01:03:48]} {[%emt 00:00:42]} f6
{[%clk 00:54:36]} {[%emt 00:01:28]} 21. Nxc6 {[%clk 01:02:38]} {[%emt
00:01:42]} Bd7 {[%clk 00:52:36]} {[%emt 00:02:30]} 22. Nexd4 {[%clk 00:59:00]}
{[%emt 00:04:09]} g6 {[%clk 00:48:27]} {[%emt 00:04:34]} 23. Bb4 {[%clk
00:56:54]} {[%emt 00:02:42]} Rf7 {[%clk 00:46:37]} {[%emt 00:01:59]} 24. a3
{[%clk 00:54:47]} {[%emt 00:02:51]} Bxc6 {[%clk 00:46:32]} {[%emt 00:00:41]} 25.
Nxc6 {[%clk 00:52:56]} {[%emt 00:02:21]} Rc7 {[%clk 00:46:50]} {[%emt
00:00:12]} 26. Rc1 {[%clk 00:52:25]} {[%emt 00:01:01]} Rd7 {[%clk 00:45:26]}
{[%emt 00:01:36]} 27. d4 {[%clk 00:51:11]} {[%emt 00:02:03]} Ra2 {[%clk
00:43:18]} {[%emt 00:02:36]} 28. Bh3 {[%clk 00:49:55]} {[%emt 00:01:47]} f5
{[%clk 00:40:42]} {[%emt 00:03:06]} 29. exf5 {[%clk 00:49:53]} {[%emt
00:00:32]} Kh8 {[%clk 00:40:09]} {[%emt 00:01:02]} 30. fxg6 {[%clk 00:49:55]}
{[%emt 00:00:29]} Rg7 {[%clk 00:39:21]} {[%emt 00:01:14]} 31. d5 {[%clk
00:48:07]} {[%emt 00:02:21]} Rxg6 {[%clk 00:39:17]} {[%emt 00:00:33]} 32. Bc3+
{[%clk 00:48:21]} {[%emt 00:00:18]} Ng7 {[%clk 00:39:25]} {[%emt 00:00:18]} 33.
Rf1 {[%clk 00:45:47]} {[%emt 00:03:06]} h6 {[%clk 00:39:28]} {[%emt 00:00:28]}
34. Bf5 {[%clk 00:44:50]} {[%emt 00:01:25]} Rd6 {[%clk 00:38:12]} {[%emt
00:01:48]} 35. Bb1 {[%clk 00:45:04]} {[%emt 00:00:16]} 1-0